Cogmind - Beta 17 @@@ ROGUE MODE // 2026.07.07 @ 01:25:02 Player: GayPredator Result: Self-destructed Performance ------------- Evolutions (1) 500 Regions Visited (3) 600 Robots Destroyed (29) 145 Value Destroyed (683) 683 Prototype IDs (5) 100 Alien Tech Used (0) 0 Bonus (5944) 5944 TOTAL SCORE: 7972 Bonus ------- Follower Combat Kills 65 Prayed to X0-1V1 5000 Major X0-1V1 Interference 950 Friendly Fire -71 Cogmind --------- Core Integrity 272/300 Matter 150/150 Energy 300/300 System Corruption 16% Temperature Cool (0) Movement Treading (160) Location -9/Materials Parts ------- > --- POWER (1) -------- (None) > --- PROPULSION (4) --- Light Treads > --- UTILITY (2) ------ Medium Storage Unit > --- WEAPON (2) ------- Heavy Assault Rifle > --- INVENTORY (10) --- Improved Ion Engine Armored Wheel Sensor Array Improved Targeting Computer Propulsion Shielding Hardened Medium Armor Plating Hardened Medium Armor Plating Tractor Beam Heavy Assault Rifle Mace Peak State ------------ > --- POWER ------------ Light Deuterium Engine > --- PROPULSION ------- Light Treads Light Treads Wheel > --- UTILITY ---------- Medium Storage Unit X0-1V1's Piety Tracker > --- WEAPON ----------- Heavy Assault Rifle Heavy Assault Rifle Mace > --- INVENTORY -------- Improved Ion Engine Armored Wheel Heat Sink Improved Targeting Computer Improved Targeting Computer Propulsion Shielding Tractor Beam Assault Rifle EMP Blaster [Rating: 27] Favorites ----------- Power Light Deuterium Engine Engine Light Deuterium Engine Power Core Light Nuclear Core Propulsion Light Treads Treads Light Treads Wheel Wheel Utility X0-1V1's Piety Tracker Device X0-1V1's Piety Tracker Storage Medium Storage Unit Processor Signal Interpreter Weapon Heavy Assault Rifle Ballistic Gun Heavy Assault Rifle Launcher Grenade Launcher Impact Weapon Mace Build | -11 -10 -10 -9 ------- Run | Yrd Mat Min Mat Slots Evolved 2 | . . . 2 Power . | . . . . Propulsion 1 | . . . 1 Utility . | . . . . Weapon 1 | . . . 1 Parts Attached 28 | 7 3 12 6 Power 4 | 1 1 2 . Engine 2 | 1 . 1 . Core 2 | . 1 1 . Reactor . | . . . . Propulsion 8 | 2 . 3 3 Treads 6 | 2 . 2 2 Leg . | . . . . Wheel 2 | . . 1 1 Hover . | . . . . Flight . | . . . . Utility 5 | 2 2 1 . Device 2 | 1 1 . . Storage 2 | 1 . 1 . Processor 1 | . 1 . . Hackware . | . . . . Protection . | . . . . Artifact . | . . . . Weapon 11 | 2 . 6 3 Energy Gun . | . . . . Energy Cannon . | . . . . Ballistic Gun 9 | 2 . 5 2 Ballistic Cannon . | . . . . Launcher 1 | . . 1 . Special Weapon . | . . . . Impact Weapon 1 | . . . 1 Slashing Weapon . | . . . . Piercing Weapon . | . . . . Special Melee Weapon . | . . . . Unidentified Prototypes 1 | . 1 . . Parts Lost 13 | . . 7 6 Power 3 | . . 2 1 Propulsion 5 | . . 2 3 Utility 1 | . . . 1 Weapon 4 | . . 3 1 Highest Loss Streak 6 | . . 6 5 To Critical Strikes . | . . . . Average Backups 8 | 3 7 7 9 Power . | . 1 . 1 Propulsion . | 1 1 . . Utility 4 | . 3 4 6 Weapon 1 | . 1 1 1 Tool/Special . | . . . . Unused Backups 18 | . 2 2 14 Power 3 | . 1 1 1 Propulsion 1 | . 1 . . Utility 10 | . . . 10 Weapon 4 | . . 1 3 Tool/Special . | . . . . Average Slot Usage (%) 93 | . 100 88 94 Engine 9 | . 6 9 11 Core 2 | . 7 3 . Treads 23 | . 28 12 25 Wheel 6 | . . 7 7 Device 11 | . 8 14 10 Storage 12 | . 14 14 11 Ballistic Gun 26 | . 28 23 27 Peak Build Rating 27 | 7 22 24 27 Average Rating 20 | 5 9 20 25 On Entrance 13 | . 7 22 24 Avg Prop Armor Cover (%) 16 | . . . 16 Naked Turns . | . . . . Heaviest Build 24 | 13 15 22 24 Greatest Support 60 | 40 40 40 60 Greatest Overweight (x) 2 | . . 1 2 Average Overweight (x) . | . . . 1 Largest Inventory Capacity 10 | 8 8 10 10 Average Capacity 9 | 7 8 9 10 Most Carried 10 | 6 8 10 10 Average Carried 8 | 3 7 7 9 Final Capacity 10 | 8 8 10 10 Final Carried 10 | 6 8 9 10 Class Distribution -------------------- 41% | Mutant 30% | Scavenger-Mutant 28% | Scavenger-Gunner Dominant Class ---------------- Mutant | -10/Materials Mutant | -10/Mines Scavenger-Gunner | -9/Materials Resources | -11 -10 -10 -9 ----------- Run | Yrd Mat Min Mat Matter Collected 1165 | 318 132 220 495 Remotely . | . . . . Salvage Created 1003 | 135 171 65 632 Parts 73 | 14 5 8 46 Haulers Intercepted 1 | . . . 1 Recyclers Shooed 3 | . . 3 . Parts Field Recycled . | . . . . Retrieved Matter . | . . . . Parts Self-Destructed . | . . . . Prevented . | . . . . Parts Restored . | . . . . Kills | -11 -10 -10 -9 ------- Run | Yrd Mat Min Mat Combat Hostiles Destroyed 31 | . 4 16 11 Guns 16 | . 4 1 11 AOE 15 | . . 15 . Classes Destroyed 13 | 3 1 4 5 Worker 2 | 2 . . . Builder 1 | . . 1 . Tunneler 3 | 2 . . 1 Hauler 1 | . . . 1 Recycler 1 | 1 . . . Mechanic 1 | . . . 1 Operator 1 | . . . 1 Watcher 3 | . . 1 2 Swarmer 3 | . . . 3 Grunt 9 | . 4 . 5 Sentry 3 | . . . 3 Demolisher 1 | . . 1 . Assembled 15 | . . 15 . Best Kill Streak 16 | 2 2 16 4 Combat Bots Only 15 | . 2 15 3 Max Kills in Single Turn 3 | 1 1 3 2 Gunslinging 1 | . . . 1 Exploded 3 | . . 3 . Melee . | . . . . Uniques/NPCs Destroyed . | . . . . Combat | -11 -10 -10 -9 -------- Run | Yrd Mat Min Mat Hostile Shots Fired 113 | . 19 36 58 Missed 24 | . 4 7 13 Hits 89 | . 15 29 45 Melee 6 | . . . 6 Projectile 83 | . 15 29 39 AOE 15 | . . 15 . Critical Strikes 3 | . . . 3 Damage Taken 1679 | . 204 774 701 Core 283 | . 16 239 28 Absorbed by Shields . | . . . . Core Remaining (%) 72 | 100 . 44 . Volleys Fired 96 | 11 14 32 39 Largest 3 | 2 2 2 3 Hottest 66 | 40 40 46 66 Shots Fired 189 | 22 28 44 95 Gun 177 | 22 28 32 95 Cannon . | . . . . Launcher 12 | . . 12 . Special . | . . . . Kinetic 177 | 22 28 32 95 Thermal . | . . . . Explosive 12 | . . 12 . Electromagnetic . | . . . . Robot Hit Streak 11 | 4 6 9 11 Robot Miss Streak 7 | 2 2 2 7 Penetration Max . | . . . . Secondary Targets 4 | . . . 4 Max Gunslinging Chain 2 | . . . 2 Shots Hit Robots 119 | 12 19 27 61 Core Hits 73 | 6 10 35 22 Critical Kills . | . . . . Critical Parts Destroyed . | . . . . Critical Strikes . | . . . . Melee Attacks 1 | . . . 1 Impact 1 | . . . 1 Slashing . | . . . . Piercing . | . . . . Sneak Attacks . | . . . . Combat Hostiles . | . . . . Follow-up Attacks . | . . . . Damage Inflicted 2485 | 146 245 1134 960 Guns 1564 | 146 245 213 960 Cannons . | . . . . Explosions 921 | . . 921 . Melee . | . . . . Ramming . | . . . . Kinetic 1564 | 146 245 213 960 Thermal . | . . . . Explosive 921 | . . 921 . Electromagnetic . | . . . . Impact . | . . . . Slashing . | . . . . Piercing . | . . . . Highest Corruption 16 | . . . 16 Average Corruption 9 | . . . 9 Corruption Purged . | . . . . Corruption Blocked . | . . . . Overload Shots . | . . . . Overflow Damage 1 | . . 1 . Projectiles . | . . . . Explosions 1 | . . 1 . Melee . | . . . . Knockbacks . | . . . . Impact . | . . . . Kinetic . | . . . . Secondary . | . . . . Self-Inflicted Damage 59 | . . 59 . Shots 2 | . . 2 . Rammed . | . . . . Targets Rammed . | . . . . Kicked . | . . . . Crushed . | . . . . Highest Temperature 30 | . 4 4 30 Average Temperature 5 | . 2 2 10 Received Heat Transfer 285 | . 111 . 174 Siege Activations . | . . . . Martial Activations . | . . . . Shielding Activations . | . . . . Robots Disrupted . | . . . . Combat Hostiles . | . . . . Robots Corrupted . | . . . . Combat Hostiles . | . . . . Parts Fried . | . . . . Impact Corruptions . | . . . . Robots Melted . | . . . . Combat Hostiles . | . . . . Parts Melted . | . . . . Heat Transferred . | . . . . Parts Sabotaged . | . . . . Parts Stolen . | . . . . Parts Stripped . | . . . . Power Chain Reactions . | . . . . Alert | -11 -10 -10 -9 ------- Run | Yrd Mat Min Mat Maximum Alert Level . | . . . . Low Security (%) 100 | 100 100 100 100 Level 1 . | . . . . Level 2 . | . . . . Level 3 . | . . . . Level 4 . | . . . . Level 5 . | . . . . High Security . | . . . . Max Security . | . . . . Peak Influence 192 | 10 50 30 192 Initial . | . . . . Average 45 | 1 16 4 77 Influence Increases 657 | 25 100 90 442 Destroy 0b10 Robot/C 380 | . 80 20 280 Destroy 0b10 Robot/NC 70 | 25 . 10 35 Destroy Leader 78 | . 20 . 58 Allied During Kill 12 | . . . 12 Successful Hack 39 | . . . 39 Disable Machine 30 | . . 15 15 Destroy Structure 33 | . . 30 3 Lose Combat Pursuer 15 | . . 15 . Influence Decreases 590 | 25 100 90 375 Time Decay 455 | 25 100 55 275 Lost Part 95 | . . 35 60 Lost Ally 40 | . . . 40 Squads Dispatched . | . . . . Investigation . | . . . . Extermination . | . . . . Reinforcement . | . . . . Assault . | . . . . Garrison . | . . . . Intercept . | . . . . Searches Triggered . | . . . . Construction Impeded . | . . . . Haulers Reinforced . | . . . . Active Scanning Responses . | . . . . Cargo Convoy Interrupts . | . . . . Stealth | -11 -10 -10 -9 --------- Run | Yrd Mat Min Mat Distress Signals 2 | . . 2 . Communications Jammed . | . . . . Distress Signals . | . . . . Times Spotted 50 | . 4 23 23 Peak Tracking Total 12 | . 2 12 4 Tactical Retreats 1 | . . 1 . Traps | -11 -10 -10 -9 ------- Run | Yrd Mat Min Mat Traps Triggered . | . . . . Indirectly . | . . . . Trap Hack Attempts . | . . . . Triggered . | . . . . Disarmed . | . . . . Reprogrammed . | . . . . Reused . | . . . . Traps Extracted . | . . . . Installed . | . . . . Triggered . | . . . . Machines | -11 -10 -10 -9 ---------- Run | Yrd Mat Min Mat Machines Disabled 2 | . . 1 1 Max in Single Turn 1 | . . 1 1 Machines Repaired . | . . . . Machines Dismantled . | . . . . Machines Sabotaged . | . . . . Overloaded Fab Kills . | . . . . Hacking | -11 -10 -10 -9 --------- Run | Yrd Mat Min Mat Machines Accessed 7 | . . . 7 Terminals 6 | . . . 6 Fabricators . | . . . . Repair Stations 1 | . . . 1 Recycling Units . | . . . . Scanalyzers . | . . . . Garrison Access . | . . . . Total Hacks 20 | . . . 20 Successful 16 | . . . 16 Failed 4 | . . . 4 Catastrophic . | . . . . Database Lockouts . | . . . . Manual 14 | . 2 . 12 Terminals 19 | . . . 19 Fabricators . | . . . . Repair Stations 1 | . . . 1 Recycling Units . | . . . . Scanalyzers . | . . . . Garrison Access . | . . . . Terminal Hacks 8 | . . . 8 Prototype ID Bank 2 | . . . 2 Branch Access Points 1 | . . . 1 Terminal Index 1 | . . . 1 Locate Traps 2 | . . . 2 Investigation Status 1 | . . . 1 Reinforcement Status 1 | . . . 1 Fabricator Hacks . | . . . . Repair Station Hacks . | . . . . Recycling Unit Hacks . | . . . . Scanalyzer . | . . . . Garrison Access Hacks . | . . . . Unauthorized Hacks 8 | . . . 8 Terminals 8 | . . . 8 Assimilate 1 | . . . 1 Botnet 1 | . . . 1 Operators 1 | . . . 1 Skim 5 | . . . 5 Fabricators . | . . . . Repair Stations . | . . . . Recycling Units . | . . . . Scanalyzers . | . . . . Garrison Access . | . . . . Data Cores Recovered 1 | . . . 1 Used . | . . . . Hacking Detections 5 | . . . 5 Full Trace Events . | . . . . Feedback Events . | . . . . Feedback Blocked . | . . . . Robot Schematics Acquired . | . . . . Robots Built . | . . . . Authchips . | . . . . Time . | . . . . Total Robot Build Rating . | . . . . Part Schematics Acquired . | . . . . Parts Built . | . . . . Authchips . | . . . . Time . | . . . . Total Part Build Rating . | . . . . Part Studies Acquired . | . . . . Parts Repaired . | . . . . Time . | . . . . Parts Recycled . | . . . . Recycled Matter . | . . . . Retrieved Matter . | . . . . Retrieved Components . | . . . . Parts Scanalyzed . | . . . . Part Schematics Acquired . | . . . . Parts Damaged . | . . . . Bothacking | -11 -10 -10 -9 ------------ Run | Yrd Mat Min Mat Used RIF Installer . | . . . . Robots Hacked . | . . . . Non-combat . | . . . . Combat . | . . . . Robot Hacks Applied . | . . . . Relay Couplers Released . | . . . . Fabnet Peak Effective % . | . . . . Robots Rewired . | . . . . Allies Hacked . | . . . . Hacks Repelled . | . . . . Allies | -11 -10 -10 -9 -------- Run | Yrd Mat Min Mat Total Allies 4 | . . . 4 Largest Group 4 | . . . 4 Highest-Rated Group 25 | . . . 25 Highest-Rated Ally 10 | . . . 10 Total Orders . | . . . . Ally Attacks 42 | . . . 42 Total Damage 272 | . . . 272 Kills 3 | . . . 3 Allies Corrupted . | . . . . Allies Melted . | . . . . X0-1V1 Amusement Gains 69 | . 14 20 35 Good Acts 8 | . . 3 5 Bad Acts 12 | . . 4 8 Intel | -11 -10 -10 -9 ------- Run | Yrd Mat Min Mat Active Infowar (turns) 220 | 80 140 . . Seismic 220 | 80 140 . . Robot Analysis Total . | . . . . Derelict Logs Recovered 1 | . . 1 . Drone Launches . | . . . . Drone Recoveries . | . . . . Exploration | -11 -10 -10 -9 ------------- Run | Yrd Mat Min Mat Turns Passed 1713 | 162 260 352 939 Spaces Moved 924 | 70 105 209 540 Core 2 | 2 . . . Treads 398 | 68 105 52 173 Legs . | . . . . Wheels 524 | . . 157 367 Hover . | . . . . Flight . | . . . . Fastest Speed 50 | 50 160 80 85 Average Speed 128 | 156 160 110 124 Slowest Speed 240 | 160 160 160 240 Overloaded Moves . | . . . . Propulsion Burnouts . | . . . . Robots Hopped . | . . . . Potential Cave-ins 4 | . . 4 . Cave-ins Triggered . | . . . . Exploration Rate (%) 29 | 4 15 49 50 Regions Visited 3 Branch Regions 1 Pre-discovered Areas 1 | . . 1 . Known Exits Taken 1 | . 1 . . Unknown Exits Taken 2 | 1 . 1 . Scrap Searched 1 | . . 1 . Spaces Dug . | . . . . Terrain Destroyed 38 | . . 38 . Melee . | . . . . Projectile . | . . . . AOE 38 | . . 38 . Terrain Rammed . | . . . . Walls Destroyed . | . . . . Machines Disabled . | . . . . Actions | -11 -10 -10 -9 --------- Run | Yrd Mat Min Mat Total 1280 | 97 170 289 724 Wait 180 | 4 41 22 113 Move 921 | 69 104 208 540 Hop . | . . . . Pick Up 27 | 6 4 6 11 Fast Attach 19 | 7 2 7 3 Attach 8 | . . 4 4 Detach 2 | . . 1 1 Swap 6 | . 1 3 2 Drop 20 | . 4 6 10 Fire 96 | 11 14 32 39 Melee 1 | . . . 1 Ram . | . . . . Kick . | . . . . Crush . | . . . . Escape Stasis . | . . . . Rewire . | . . . . Trap . | . . . . Miscellaneous . | . . . . Route ------- -11/Scrapyard -10/Materials (discovered 2 exits: *Min / *Sub) -10/Mines (discovered 2 exits: *Mat / Sub) -9/Materials (discovered 4 exits: [*Mat x2] / Min / Sto) History --------- Turn | Location | Event 6 | -11/Scrapyard | Discovered new exit (range 15) 163 | -11/Scrapyard | Entered Materials 265 | -10/Materials | Discovered new exit (range 9) 274 | -10/Materials | Discovered new exit (range 9) 324 | -10/Materials | Build established: Mutant 374 | -10/Materials | Identified exit to Mines 393 | -10/Materials | Identified exit to Subcaves 398 | -10/Materials | Prayed at D.C.S.S. Altar Unit 423 | -10/Materials | Entered Mines 453 | -10/Mines | Assembled infested the area 458 | -10/Mines | Assisted by a Guerilla fighting off Assembled 495 | -10/Mines | X0-1V1 sent someone to keep an eye on you 504 | -10/Mines | Destroyed 15 combat bots 516 | -10/Mines | Core integrity fell below 50% 520 | -10/Mines | Core integrity fell below 20% 563 | -10/Mines | Lost 6 parts (1p2n3w) 563 | -10/Mines | X0-1V1 revealed exit location to -10/Subcaves 626 | -10/Mines | X0-1V1 rescued you from certain death 693 | -10/Mines | Discovered new exit (range 6) 710 | -10/Mines | Joined a pair of Derelicts in attacking an 0b10 outpost 751 | -10/Mines | X0-1V1 activates XOMVISION 775 | -10/Mines | Entered Materials 775 | -9/Materials | Evolved 2 slots: Propulsion x1, Weapon x1 791 | -9/Materials | Energy capacity permanently improved by X0-1V1 (+200; -100 max core) 807 | -9/Materials | X0-1V1 announced a LAN party 1025 | -9/Materials | X0-1V1 sent hostile G-34 Mercenary (x3) 1062 | -9/Materials | Build established: Scavenger-Gunner 1079 | -9/Materials | Identified exit to Mines 1079 | -9/Materials | Identified exit to Storage 1190 | -9/Materials | Discovered new exit (range 10) 1248 | -9/Materials | X0-1V1 mutated your Weapon slot to Propulsion slot 1319 | -9/Materials | X0-1V1 sent allied S-10 Pest (x3) 1453 | -9/Materials | X0-1V1 rewrote S-10 Pest IFF filter 1561 | -9/Materials | Build established: Scavenger-Mutant 1584 | -9/Materials | Discovered new exit (range 11) 1673 | -9/Materials | Learned 2 Storage zone layouts 1708 | -9/Materials | System corruption reached 10% 1714 | -9/Materials | Self-destructed Last Messages --------------- 01673_ >> SKIM: Stored Storage zone layouts (x2). 01683_ X0-1V1: "Did you know you're leaking matter?" (-150 matter capacity) 01694_ G-34 Mercenary destroyed. 01697_ Acquired 6 matter. 01702_ Lgt. Treads destroyed. 01702_ X0-1V1's Piety Tracker destroyed. 01702_ X0-1V1 is mildly amused. 01702_ System corrupted by crushing effect (+5). 01702_ System corrupted by crushing effect (+2). 01703_ Acquired 6 matter. 01707_ Lgt. Treads destroyed. 01707_ System corrupted by crushing effect (+4). 01709_ Acquired 6 matter. 01713_ Lgt. Deuterium Engine destroyed. 01713_ Hvy. Assault Rifle destroyed. 01713_ System corrupted by crushing effect (+3). 01713_ System corrupted by crushing effect (+2). 01714_ X0-1V1 is amused. Map ----- +----------------------------------------------------+ | ????????????????????###+#######??????????????????? | | ????????????????????# #??????????????????? | | ????????????????????# #??????????????????? | | ????????????????????# #??????????????????? | | ????????????????????# % #??????????????????? | | ????????????????????# " "" #??????????????????? | | ????????????????????# "R"" #??????????????????? | | ????????????????????# =*""" #??????????????????? | | ????????????????????# = ! #??????????????????? | | ????????????????????########+###########?????????? | | ?????????????????######## #?????????? | | ?????????????????# # < #?????????? | | >????????????????#" # #?????????? | | ?????????????????#T [ # ############?????????? | | ?????????????????#" !# #????????????????????? | | ?????????????????# # #????????????????????? | | ?????????????????# + +????????????????????? | | ?????????????????# """" # #????????????????????? | | ?????????????????# """" # #????????????????????? | | ?????????????????# """" # #????????????????????? | | ?????????????????# # t#????????????????????? | | ? #######+############## #????????????????????? | | ^ ^ ^ !=[! #?????# #????????????????????? | | ![[%=####### #????????????????????? | | ???""^ =[[=%* !* ob= #????????????????????? | | ???"" """ ############@[ #????????????????????? | | ?????? """ ?????????????#= #????????????????????? | | ???????"????????????????# #????????????????????? | | ????????????????????????# #????????????????????? | | ????????????????????????# #????????????????????? | | ????????????????????????# #????????????????????? | | ????????????????????????# #????????????????????? | | ????????????????????????# #????????????????????? | | ????????????????????????# #????????????????????? | | ????????????????????????# #????????????????????? | | ????????????????????????? #????????????????????? | | ????????????????????????? #????????????????????? | | ????????????????????????? #????????????????????? | | ????????????????????????? #????????????????????? | | ????????????????????????? #????????????????????? | | ????????????????????????? #????????????????????? | | ????????????????????????? ?????????????????????? | | ?????????????????????????????????????????????????? | | ?????????????????????????????????????????????????? | | ?????????????????????????????????????????????????? | | ?????????????????????????????????????????????????? | | ?????????????????????????????????????????????????? | | ?????????????????????????????????????????????????? | | ?????????????????????????????????????????????????? | | ?????????????????????????????????????????????????? | +----------------------------------------------------+ Best States ------------- Heat Dissipation 28 Energy Generation 14 Energy Capacity 340 Matter Stores 300 Matter Capacity 300 Sight Range 16 Terrain Scan Density 10 Evasion (%) 44 Recoil Reduction 3 Item Schematics ----------------- None Robot Schematics ------------------ None Fabricated ------------ Nothing Repaired ---------- Nothing Studied --------- None Alien Tech Used ----------------- None Achievements -------------- Chaos Is Inevitable Challenges ------------ None Game ------ Seed BattleRainbowSpiker Manual? 0 Play Time 00:23:57 Cumulative 208.0 hours Start 2026.07.06 @ 18:53:12 End 2026.07.07 @ 01:25:02 Sessions 3 Manual Loads 0 Difficulty Rogue Special Mode None Game No. 197 Rogue 158 Adventurer 32 Explorer 7 Win Type - Total 4 Types 4/0/0/0/0/0/0/0/0/0 Lore% 54 Gallery% 61 Achievement% 38 Wizard Run 0 Options --------- Layout 1 ASCII 0 Keyboard 0 Movement Numpad Keybinds 0 Fullscreen 1 Font 24/Smallcaps Map View 50x35 Zoom Use 0% Tactical HUD 1 Map Filters NONE Filters NONE Steam 1 RUN: 30c9ea5c-1716-4ef1-9cc3-c580e04b367e